bitfinex-derivatives/quotes_SOLF0:USTF0_20241211
["timestamp","ask_amount","ask_price","bid_price","bid_amount"]
[1733895069970,7.10640833,217.44,217.36,7.10640833]
[1733895070166,7.10640833,217.44,217.37,2.16]
[1733895070975,7.10640833,217.44,217.37,9.26640833]
[1733895071570,2.2986,217.43,217.37,9.26640833]
[1733895072769,7.10640833,217.44,217.39,7.10640833]
[1733895072973,2.16,217.5,217.39,7.10640833]
[1733895073173,11.16934819,217.49,217.37,2.16]
[1733895073469,2.2982,217.47,217.4,2.2989]
[1733895073874,11.16934819,217.52,217.39,16.56747611]
[1733895074778,2.16,217.55,217.39,16.56747611]
[1733895074779,11.16934819,217.55,217.42,11.16934819]
[1733895074981,11.16934819,217.55,217.43,2.16]
[1733895075579,1.3764,217.57,217.45,11.16934819]
[1733895075784,11.16934819,217.58,217.45,11.16934819]
[1733895076081,11.16934819,217.61,217.5,2.2978]
[1733895076271,11.16934819,217.61,217.51,2.16]
[1733895077583,2.2971,217.57,217.51,2.16]
[1733895078479,2.2971,217.57,217.51,4.4577]
[1733895078679,2.2973,217.56,217.51,2.16]
[1733895078874,11.16934819,217.58,217.51,2.16]
[1733895079185,2.2976,217.53,217.51,2.16]
[1733895081186,11.16934819,217.55,217.44,2.2984]
[1733895081383,2.2978,217.51,217.45,2.16]
[1733895081585,11.16934819,217.52,217.4,1.3969]
[1733895081784,11.16934819,217.52,217.41,2.16]
[1733895081984,11.16934819,217.52,217.4,1.3969]
[1733895082185,11.16934819,217.52,217.41,2.16]
[1733895082685,11.16934819,217.52,217.42,2.16]
[1733895084688,2.2982,217.47,217.42,2.16]
[1733895085085,2.2983,217.46,217.43,2.16]
[1733895087800,2.2982,217.48,217.43,2.16]
[1733895088090,1.4088,217.54,217.43,2.16]
[1733895088091,11.16934819,217.52,217.43,2.16]
[1733895088499,1.4088,217.54,217.43,2.16]
[1733895088695,11.16934819,217.55,217.43,2.16]
[1733895088888,2.2975,217.54,217.47,2.2981]
[1733895089094,11.16934819,217.55,217.48,2.16]
[1733895089702,2.2974,217.55,217.49,2.2979]
[1733895089992,1.4115,217.57,217.48,2.16]
[1733895090189,1.4115,217.57,217.49,2.2979]
[1733895090392,1.4115,217.57,217.48,2.16]
[1733895091598,2.2973,217.56,217.5,2.2978]
[1733895092497,11.16934819,217.61,217.49,12.56344819]
[1733895092798,11.16934819,217.61,217.49,15.36864819]
[1733895092990,2.297,217.58,217.51,2.2976]
[1733895093494,2.297,217.58,217.49,15.36864819]
[1733895094294,12.58414819,217.62,217.49,4.1993]
[1733895094600,11.16934819,217.59,217.5,2.16]
[1733895095997,11.16934819,217.59,217.51,2.16]
[1733895097399,12.88879248,217.58,217.51,2.16]
[1733895097602,12.88879248,217.57,217.51,2.16]
[1733895097900,11.16934819,217.59,217.51,2.16]
[1733895098102,2.2975,217.54,217.51,2.16]
[1733895098804,2.2971,217.57,217.51,2.16]
[1733895098997,11.16934819,217.59,217.51,2.16]
[1733895099303,2.2976,217.53,217.51,2.16]
[1733895099499,11.16934819,217.59,217.51,2.16]
[1733895099700,11.16934819,217.56,217.51,2.16]
[1733895099900,2.2976,217.52,217.51,2.16]
[1733895103604,2.2976,217.52,217.49,5.43094542]
[1733895103800,2.2976,217.52,217.5,2.16]
[1733895105706,2.2976,217.52,217.49,5.43094542]
[1733895106005,2.2976,217.52,217.5,2.16]
[1733895108203,3.5748,217.62,217.4,4.2008]
[1733895108204,7.14385491,217.51,217.4,4.2008]
[1733895108404,7.14385491,217.49,217.42,7.14385491]
[1733895109104,7.14385491,217.49,217.43,2.16]
[1733895109304,2.2981,217.48,217.43,4.4586]
[1733895109509,7.14385491,217.49,217.43,2.16]
[1733895110501,2.2983,217.47,217.43,2.16]
[1733895112301,7.14385491,217.49,217.4,6.4996]
[1733895112610,7.14385491,217.45,217.41,2.16]
[1733895112904,2.2987,217.43,217.41,2.16]
[1733895113105,7.14385491,217.45,217.41,2.16]
[1733895113407,2.16,217.52,217.41,2.16]
[1733895113408,7.14385491,217.43,217.41,2.16]
[1733895114307,2.2977,217.51,217.46,2.2982]
[1733895114508,7.14385491,217.55,217.47,9.30385491]
[1733895114805,12.94292612,217.54,217.48,2.16]
[1733895115009,7.14385491,217.55,217.48,2.16]
[1733895115208,12.94325303,217.54,217.48,2.16]
[1733895115409,7.14385491,217.55,217.48,2.16]
[1733895115609,2.2975,217.54,217.48,4.458]
[1733895115806,7.14385491,217.55,217.48,2.16]
[1733895116511,9.44105491,217.57,217.49,7.14385491]
[1733895116809,2.7982,217.62,217.51,7.14385491]
[1733895117107,2.7982,217.62,217.53,7.14385491]
[1733895117108,20.09368714,217.61,217.53,7.14385491]
[1733895117407,2.2966,217.62,217.55,2.2973]
[1733895120006,11.15416981,217.64,217.5,8.35456207]
[1733895120212,11.15416981,217.61,217.51,2.16]
[1733895120407,12.93841395,217.6,217.51,2.16]
[1733895120710,11.15416981,217.61,217.51,2.16]
[1733895121114,12.93772213,217.6,217.51,2.16]
[1733895121312,2.2972,217.56,217.52,2.16]
[1733895124111,11.15416981,217.58,217.51,2.16]
[1733895124318,12.93104886,217.57,217.51,2.16]
[1733895124516,11.15416981,217.58,217.51,2.16]
[1733895124712,2.2975,217.54,217.51,2.16]
[1733895125211,2.2975,217.53,217.51,2.16]
[1733895126817,2.2975,217.53,217.49,2.16]
[1733895127814,11.15416981,217.55,217.44,47.82]
[1733895128018,11.15416981,217.55,217.45,2.16]
[1733895128221,12.92813179,217.54,217.45,2.16]
[1733895128411,1.4298,217.54,217.45,2.16]
[1733895128613,11.15416981,217.52,217.45,2.16]
[1733895129314,11.15416981,217.49,217.42,2.16]
[1733895130821,2.2979,217.49,217.43,2.2986]
[1733895131021,11.15416981,217.52,217.42,2.16]
[1733895131823,2.298,217.49,217.43,2.2985]
[1733895133928,11.15416981,217.52,217.44,2.2984]
[1733895134828,1.4298,217.54,217.47,2.2981]
[1733895135029,1.4298,217.54,217.4,1.4486]
[1733895135030,12.52726981,217.58,217.48,2.16]
[1733895135226,11.15416981,217.58,217.48,2.16]
[1733895135424,1.3565,217.65,217.48,13.31416981]
[1733895135721,11.15416981,217.63,217.48,13.31416981]
[1733895135926,12.51926981,217.6,217.48,13.31416981]
[1733895136520,12.51926981,217.6,217.51,2.2977]
[1733895136521,2.2971,217.58,217.51,2.2977]
[1733895136719,12.51926981,217.6,217.51,2.2977]
[1733895137027,12.51926981,217.6,217.52,2.2976]
[1733895137028,2.297,217.59,217.52,2.2976]
[1733895137324,1.3651,217.6,217.53,2.16]
[1733895138024,1.3651,217.6,217.53,4.4575]
[1733895138528,1.3651,217.6,217.53,2.16]
[1733895138834,2.2969,217.59,217.54,2.2974]
[1733895140029,2.2969,217.59,217.53,4.4575]
[1733895141026,3.662,217.6,217.53,4.4575]
[1733895141225,1.3651,217.6,217.53,4.4575]
[1733895142833,2.2969,217.59,217.53,4.4575]
[1733895145030,11.15416981,217.63,217.53,2.16]
[1733895145228,2.2971,217.57,217.53,2.16]
[1733895145828,2.2973,217.56,217.49,3.7495]
[1733895146037,11.15416981,217.6,217.5,2.16]
[1733895146926,2.2971,217.57,217.5,2.16]
[1733895147127,11.15416981,217.6,217.48,7.93816002]
[1733895147334,11.15416981,217.6,217.49,2.16]
[1733895147631,12.93737477,217.59,217.49,2.16]
[1733895147833,11.15416981,217.6,217.49,2.16]
[1733895148030,12.94193529,217.59,217.49,2.16]
[1733895148229,12.94193529,217.58,217.49,2.16]
[1733895148424,11.15416981,217.6,217.49,2.16]
[1733895148625,12.94329518,217.59,217.49,2.16]
[1733895148826,11.15416981,217.6,217.51,2.2977]
[1733895149027,11.15416981,217.6,217.49,2.16]
[1733895149225,2.2973,217.55,217.49,9.30157001]
[1733895149937,6.96275432,217.65,217.51,7.14157001]
[1733895150132,7.14157001,217.59,217.51,7.14157001]
[1733895151636,7.14157001,217.59,217.54,2.2974]
[1733895151838,7.14157001,217.59,217.55,2.16]
[1733895152034,7.14157001,217.59,217.56,2.16]
[1733895153137,7.14157001,217.57,217.56,2.16]
[1733895154036,9.43867001,217.57,217.56,2.16]
[1733895154235,2.2971,217.57,217.5,5.5797785]
[1733895154431,9.43867001,217.57,217.51,2.16]
[1733895154636,9.43857001,217.59,217.51,9.30157001]
[1733895155341,7.14157001,217.59,217.54,2.2973]
[1733895155539,2.2968,217.61,217.53,7.14157001]
[1733895155841,9.43837001,217.61,217.53,7.14157001]
[1733895156640,9.43837001,217.61,217.56,2.2972]
[1733895156843,2.2972,217.56,217.54,2.16]
[1733895157643,7.14157001,217.57,217.54,2.16]
[1733895158150,2.2973,217.55,217.54,2.16]
[1733895161550,9.43887001,217.55,217.54,2.16]
[1733895166754,2.16,217.64,217.54,2.16]
[1733895166957,1.3565,217.65,217.54,2.16]
[1733895166958,7.14157001,217.6,217.54,2.16]
[1733895167151,12.95808894,217.59,217.54,2.16]
[1733895167358,7.14157001,217.6,217.54,2.16]
[1733895167857,7.14157001,217.62,217.56,2.2972]
[1733895168154,12.95990921,217.61,217.56,2.2972]
[1733895168352,7.14157001,217.62,217.56,2.2972]
[1733895168554,15.25629522,217.61,217.56,2.2972]
[1733895168748,2.2968,217.61,217.56,2.2972]
[1733895169453,2.2968,217.61,217.57,2.2971]
[1733895172757,2.2966,217.63,217.58,2.297]
[1733895172958,7.14157001,217.65,217.59,2.16]
[1733895173161,12.9584037,217.64,217.6,2.16]
[1733895173462,7.14157001,217.63,217.6,2.16]
[1733895173964,5.39775726,217.71,217.6,2.16]
[1733895174262,9.43797001,217.64,217.6,2.16]
[1733895175059,2.2965,217.63,217.6,2.16]
[1733895176463,7.14157001,217.64,217.6,2.16]
[1733895177465,9.43797001,217.64,217.6,2.16]
[1733895179059,2.7099,217.72,217.6,2.16]
[1733895179256,2.2963,217.65,217.6,4.4568]
[1733895180265,9.43777001,217.66,217.61,2.2967]
[1733895180661,7.14157001,217.66,217.6,2.16]
[1733895181064,7.14157001,217.66,217.61,2.2967]
[1733895181864,2.7099,217.72,217.6,2.16]
[1733895182063,7.14157001,217.67,217.6,2.16]
[1733895183062,7.14157001,217.63,217.6,2.16]
[1733895183466,9.43827001,217.61,217.6,2.16]
[1733895183667,9.43827001,217.61,217.55,1.3908]
[1733895183668,7.14157001,217.61,217.55,1.3908]
[1733895183967,7.14157001,217.59,217.56,2.16]
[1733895184165,2.16,217.7,217.56,2.16]
[1733895184369,7.14157001,217.61,217.56,2.16]
[1733895184760,9.43837001,217.61,217.56,2.16]
[1733895185169,9.43837001,217.61,217.57,2.16]
[1733895186063,7.14157001,217.61,217.57,2.16]
[1733895186263,7.14157001,217.59,217.5,2.809]
[1733895186567,15.93,217.7,217.51,2.16]
[1733895186568,7.14157001,217.56,217.51,2.16]
[1733895187173,7.14157001,217.56,217.51,7.56983795]
[1733895187567,2.2974,217.55,217.51,7.56983795]
[1733895188069,2.2974,217.55,217.51,5.40983795]
[1733895188267,2.2974,217.55,217.52,2.16]
[1733895188568,7.14157001,217.54,217.52,2.16]
[1733895189069,7.14157001,217.54,217.49,47.8]
[1733895189266,7.14157001,217.54,217.5,2.16]
[1733895189459,2.2975,217.53,217.5,2.16]
[1733895193069,9.43897001,217.54,217.5,2.16]
[1733895196837,5.45472688,217.62,217.5,2.16]
[1733895197015,2.784,217.64,217.55,7.14157001]
[1733895197170,8.55827001,217.64,217.57,7.14157001]
[1733895197374,2.2963,217.65,217.59,2.2969]
[1733895198171,2.2963,217.65,217.6,2.2968]
[1733895198373,2.2963,217.65,217.59,7.14157001]
[1733895198374,7.14157001,217.67,217.59,7.14157001]
[1733895199071,7.14157001,217.68,217.61,9.43827001]
[1733895199474,7.14157001,217.68,217.61,7.14157001]
[1733895199771,9.43747001,217.68,217.62,2.2966]
[1733895199968,7.14157001,217.7,217.63,2.16]
[1733895200174,9.43737001,217.7,217.63,4.4565]
[1733895202279,7.14157001,217.68,217.63,2.16]
[1733895202976,2.2962,217.66,217.63,2.16]
[1733895204378,2.16,217.74,217.63,2.16]
[1733895204379,9.43797001,217.64,217.63,2.16]
[1733895204678,7.14157001,217.64,217.56,7.14157001]
[1733895204974,5.63119815,217.75,217.57,2.16]
[1733895204975,7.14157001,217.62,217.57,2.16]
[1733895205779,1.4325,217.67,217.57,2.16]
[1733895205975,20.09325045,217.66,217.6,7.14157001]
[1733895206175,7.14157001,217.66,217.6,7.14157001]
[1733895206381,2.2961,217.67,217.62,2.2965]
[1733895206586,2.2961,217.67,217.63,2.16]
[1733895206973,7.14157001,217.7,217.63,2.16]
[1733895207281,12.95311102,217.69,217.63,2.16]
[1733895207585,7.14157001,217.7,217.63,2.16]
[1733895208580,2.2959,217.68,217.63,4.4565]
[1733895209082,7.14157001,217.7,217.63,2.16]
[1733895210080,7.14157001,217.68,217.63,2.16]
[1733895210977,9.43757001,217.68,217.63,2.16]
[1733895211183,7.14157001,217.68,217.63,2.16]
[1733895212087,7.14157001,217.66,217.64,2.16]
[1733895212585,2.2964,217.64,217.59,2.2968]
[1733895212777,7.14157001,217.64,217.6,2.16]
[1733895213488,2.2966,217.62,217.56,7.14157001]
[1733895213696,2.2966,217.62,217.57,2.16]
[1733895214185,2.2966,217.62,217.58,2.16]
[1733895214586,9.43807001,217.64,217.58,2.16]
[1733895215186,1.4325,217.74,217.58,9.30157001]
[1733895215383,2.296,217.68,217.6,7.14157001]
[1733895215589,7.14157001,217.69,217.6,7.14157001]
[1733895216090,2.2959,217.68,217.62,2.2965]
[1733895216290,2.2959,217.68,217.63,2.16]
[1733895216493,7.14157001,217.71,217.63,2.16]
[1733895217290,2.2958,217.69,217.64,2.2963]
[1733895217887,1.4325,217.74,217.63,2.16]
[1733895218194,1.4325,217.74,217.68,7.14157001]
[1733895218388,1.4325,217.74,217.69,2.16]
[1733895219392,2.2954,217.73,217.69,2.16]
[1733895220200,2.2957,217.71,217.7,2.16]
[1733895220491,1.4325,217.74,217.7,2.16]
[1733895220685,15.24882367,217.73,217.7,2.16]
[1733895220888,2.2954,217.73,217.7,2.16]
[1733895221693,2.2953,217.75,217.7,2.16]
[1733895222295,15.247309,217.74,217.7,2.16]
[1733895222596,2.2953,217.74,217.7,2.16]
[1733895223494,2.2956,217.72,217.71,2.16]
[1733895223697,2.2956,217.72,217.69,5.63546203]
[1733895223892,2.2956,217.72,217.7,2.16]
[1733895225090,2.2955,217.72,217.7,2.16]
[1733895228700,2.2956,217.71,217.7,2.16]
[1733895235697,7.14157001,217.73,217.7,2.16]
[1733895235996,2.2956,217.72,217.7,2.16]
[1733895236388,1.4624,217.8,217.7,2.16]
[1733895236594,7.14157001,217.71,217.61,1.4813]
[1733895236796,7.14157001,217.68,217.62,2.16]
[1733895237902,7.14157001,217.66,217.62,2.16]
[1733895238492,7.14157001,217.66,217.62,7.76922652]
[1733895238894,7.14157001,217.66,217.62,2.16]
[1733895239298,2.2963,217.65,217.62,2.16]
[1733895239504,7.14157001,217.66,217.62,2.16]
[1733895239802,7.14157001,217.68,217.62,2.16]
[1733895240198,7.14157001,217.66,217.62,2.16]
[1733895240499,2.2963,217.65,217.62,2.16]
[1733895242106,2.2964,217.64,217.62,2.16]
[1733895243912,2.2966,217.62,217.56,1.3589]
[1733895244207,2.2966,217.62,217.57,9.30157001]
[1733895244508,2.2966,217.62,217.58,2.16]
[1733895245311,7.14157001,217.64,217.56,1.3589]
[1733895245611,2.2968,217.61,217.57,2.16]
[1733895245810,2.2968,217.61,217.58,5.4317655]
[1733895247413,2.2968,217.61,217.59,2.16]
[1733895248118,2.2968,217.6,217.59,2.16]
[1733895248707,7.14157001,217.6,217.54,5.54146469]
[1733895248906,7.14157001,217.6,217.52,8.48827001]
[1733895249113,7.14157001,217.58,217.5,50.24625205]
[1733895249313,2.2972,217.56,217.53,2.16]
[1733895249519,7.14157001,217.58,217.53,2.16]
[1733895250519,2.2973,217.56,217.53,2.16]
[1733895252812,2.2974,217.55,217.53,2.16]
[1733895257118,2.2974,217.54,217.48,2.298]
[1733895257416,2.2974,217.54,217.43,1.4175]
[1733895257417,7.14157001,217.54,217.49,2.16]
[1733895257620,7.14157001,217.54,217.47,7.14157001]
[1733895257821,7.14157001,217.54,217.48,2.16]
[1733895258213,7.14157001,217.52,217.43,1.4175]
[1733895258520,7.14157001,217.52,217.44,14.71296533]
[1733895258818,2.2982,217.47,217.44,2.16]
[1733895259021,7.14157001,217.5,217.44,2.16]
[1733895259316,1.3644,217.58,217.4,45.42793771]
[1733895259317,2.2984,217.45,217.4,45.42793771]
[1733895259614,7.14157001,217.42,217.35,2.16]
[1733895260110,7.14157001,217.42,217.35,7.72641643]
[1733895260715,2.299,217.4,217.35,5.56641643]
[1733895260919,2.299,217.4,217.36,2.16]
[1733895262214,2.2983,217.46,217.38,7.14157001]
[1733895262423,2.2983,217.46,217.4,7.14157001]
[1733895262715,1.3894,217.51,217.41,2.16]
[1733895262921,7.14157001,217.48,217.41,2.16]
[1733895263121,2.2983,217.46,217.41,2.16]
[1733895263720,1.3894,217.51,217.42,7.14157001]
[1733895263915,1.3894,217.51,217.44,7.14157001]
[1733895264418,1.3894,217.51,217.41,2.16]
[1733895264616,2.2979,217.5,217.43,9.44007001]
[1733895264824,1.3894,217.51,217.43,9.44007001]
[1733895265026,7.14157001,217.5,217.43,9.44007001]
[1733895265527,2.2978,217.51,217.44,2.2985]
[1733895265730,2.2978,217.51,217.43,7.14157001]
[1733895266119,10.80237001,217.52,217.46,2.2982]
[1733895266325,10.80237001,217.52,217.47,2.16]
[1733895267624,2.2977,217.51,217.47,2.16]
[1733895268023,1.4401,217.56,217.47,2.16]
[1733895268223,1.4401,217.56,217.47,9.30157001]
[1733895268224,7.14157001,217.54,217.47,9.30157001]
[1733895269724,7.14157001,217.54,217.47,11.59967001]
[1733895269725,2.2976,217.53,217.47,11.59967001]
[1733895273630,2.2976,217.53,217.47,4.4581]
[1733895273925,7.14157001,217.54,217.48,9.43947001]
[1733895274126,2.2973,217.55,217.48,7.14157001]
[1733895275030,1.4424,217.61,217.52,7.14157001]
[1733895275227,7.14157001,217.6,217.53,2.16]
[1733895275629,2.2969,217.59,217.53,4.4575]
[1733895276028,1.4282,217.63,217.54,7.14157001]
[1733895276233,7.14157001,217.62,217.54,7.14157001]
[1733895276531,2.2968,217.6,217.55,2.2973]
[1733895276835,7.14157001,217.62,217.54,7.14157001]
[1733895277726,7.14157001,217.62,217.56,2.2972]
[1733895277727,9.43817001,217.62,217.56,2.2972]
[1733895278127,9.43817001,217.62,217.56,9.43877001]
[1733895278628,2.2967,217.61,217.56,7.14157001]
[1733895279132,7.14157001,217.62,217.56,7.14157001]
[1733895279327,2.2968,217.6,217.56,7.14157001]
[1733895280827,7.14157001,217.62,217.57,2.2971]
[1733895280828,9.43817001,217.62,217.57,2.2971]
[1733895281129,9.43817001,217.62,217.58,2.16]
[1733895282132,9.43817001,217.62,217.55,2.16]
[1733895282133,2.2967,217.61,217.55,2.16]
[1733895282731,2.2967,217.61,217.56,9.43877001]
[1733895283331,2.2966,217.62,217.56,9.43877001]
[1733895283636,2.2966,217.62,217.57,2.2971]
[1733895283838,2.2964,217.64,217.56,7.14157001]
[1733895284027,2.2964,217.64,217.59,2.2969]
[1733895284334,2.2964,217.64,217.6,2.16]
[1733895285128,7.14157001,217.67,217.6,9.30157001]
[1733895285336,2.2962,217.66,217.61,2.2966]
[1733895285935,9.43757001,217.67,217.62,2.2965]
[1733895286428,9.43747001,217.69,217.63,2.2964]
[1733895286633,9.43747001,217.69,217.62,7.14157001]
[1733895287732,9.43747001,217.69,217.64,2.2963]
[1733895287937,9.43747001,217.69,217.65,2.16]
[1733895290644,2.2959,217.69,217.65,2.16]
[1733895290845,7.14157001,217.71,217.65,2.16]
[1733895291044,2.2959,217.69,217.65,2.16]
[1733895291638,2.296,217.68,217.65,2.16]
[1733895292246,2.2961,217.66,217.57,8.32326794]
[1733895292546,6.94582658,217.75,217.6,7.14157001]
[1733895292547,7.14157001,217.67,217.6,7.14157001]
[1733895293444,7.14157001,217.65,217.61,2.14]
[1733895294247,7.14157001,217.65,217.62,2.14]
[1733895294248,2.2965,217.63,217.62,2.14]
[1733895295147,9.43807001,217.63,217.62,2.14]
[1733895300140,2.2967,217.61,217.57,5.50896794]
[1733895300342,7.14157001,217.61,217.58,2.14]
[1733895300543,7.14157001,217.61,217.57,5.50896794]
[1733895300748,7.14157001,217.61,217.58,2.14]
[1733895301242,2.9358,217.69,217.5,9.43937001]
[1733895301243,2.2971,217.57,217.5,9.43937001]
[1733895301549,7.14157001,217.57,217.51,2.14]
[1733895302249,7.14157001,217.57,217.4,43.12386754]
[1733895302250,1.3815,217.64,217.4,43.12386754]
[1733895302452,12.81866771,217.63,217.5,7.14157001]
[1733895302747,7.14157001,217.58,217.5,7.14157001]
[1733895302950,9.43857001,217.58,217.52,2.2976]
[1733895303147,9.43857001,217.58,217.53,2.16]
[1733895304453,7.14157001,217.6,217.53,2.16]
[1733895304648,2.2969,217.6,217.54,9.43897001]
[1733895305047,5.0958,217.69,217.54,9.43897001]
[1733895305048,2.2967,217.62,217.55,2.2973]
[1733895305259,7.14157001,217.62,217.54,7.14157001]
[1733895305443,7.14157001,217.62,217.56,7.14157001]
[1733895305751,7.14157001,217.62,217.56,9.43877001]
[1733895307354,7.14157001,217.66,217.6,7.14157001]
[1733895307551,8.55877001,217.68,217.61,2.16]
[1733895307746,7.14157001,217.68,217.61,2.16]
[1733895308653,2.2962,217.66,217.61,4.4567]
[1733895309054,7.14157001,217.66,217.61,2.16]
[1733895309254,2.2964,217.64,217.61,2.16]
[1733895309651,1.4615,217.69,217.61,2.16]
[1733895309857,2.2962,217.66,217.61,2.16]
[1733895310259,7.14157001,217.65,217.61,2.16]
[1733895310453,2.2966,217.62,217.61,2.16]
[1733895310646,7.14157001,217.65,217.61,2.16]
[1733895312551,9.43787001,217.65,217.61,2.16]
[1733895314157,7.14157001,217.65,217.61,4.4566]
[1733895314755,7.14157001,217.65,217.61,2.16]
[1733895315858,9.43757001,217.68,217.61,2.16]
[1733895316055,7.14157001,217.68,217.61,9.30157001]
[1733895317558,9.43747001,217.68,217.63,2.2964]
[1733895318559,7.14157001,217.66,217.61,4.4566]
[1733895319564,9.43767001,217.66,217.61,4.4566]
[1733895319765,7.14157001,217.66,217.61,4.4566]
[1733895320062,7.14157001,217.68,217.61,11.59817001]
[1733895320462,7.14157001,217.68,217.61,9.30157001]
[1733895320658,9.43757001,217.68,217.62,2.2966]
[1733895321066,2.2958,217.7,217.65,2.2962]
[1733895321362,2.2958,217.7,217.66,2.14]
[1733895323163,2.8931,217.74,217.62,3.7672]
[1733895323164,2.296,217.68,217.62,3.7672]
[1733895323464,7.14157001,217.65,217.63,2.14]
[1733895324666,9.43777001,217.65,217.63,2.14]
[1733895326163,9.43767001,217.67,217.63,2.14]
[1733895326767,7.14157001,217.67,217.63,2.14]
[1733895327063,9.43737001,217.7,217.65,2.2962]
[1733895327462,2.2958,217.69,217.64,2.2963]
[1733895331275,7.14157001,217.68,217.63,2.14]
[1733895331476,7.14157001,217.66,217.63,2.14]
[1733895331974,9.43777001,217.66,217.63,2.14]
[1733895334374,7.14157001,217.64,217.56,7.14157001]
[1733895334573,7.14157001,217.64,217.57,2.14]
[1733895335376,7.14157001,217.64,217.59,5.53993343]
[1733895335770,5.0331,217.74,217.59,5.53993343]
[1733895335771,7.14157001,217.66,217.59,5.53993343]
[1733895336273,7.14157001,217.66,217.6,2.2968]
[1733895336274,2.2963,217.65,217.6,2.2968]
[1733895336575,7.14157001,217.66,217.59,5.53993343]
[1733895337679,2.2963,217.64,217.59,7.83683343]
[1733895337874,7.14157001,217.66,217.59,5.53993343]
[1733895338584,7.14157001,217.66,217.62,2.2966]
[1733895338781,7.14157001,217.66,217.63,2.14]
[1733895339277,2.2963,217.65,217.63,2.14]
[1733895339473,7.14157001,217.66,217.63,2.14]
[1733895339883,2.2963,217.65,217.63,2.14]
[1733895340085,7.14157001,217.64,217.59,5.53993343]
[1733895340383,7.14157001,217.64,217.6,2.14]
[1733895340586,2.2966,217.62,217.6,2.14]
[1733895341788,2.2965,217.63,217.6,2.14]
[1733895344386,7.14157001,217.66,217.6,2.14]
[1733895344580,7.14157001,217.68,217.6,2.14]
[1733895345087,2.2962,217.66,217.61,2.2966]
[1733895346296,9.43757001,217.68,217.63,2.2964]
[1733895346887,9.43737001,217.7,217.64,2.2963]
[1733895347091,9.43737001,217.7,217.65,2.14]
[1733895347586,9.43737001,217.7,217.65,4.4362]
[1733895347791,2.2958,217.7,217.65,11.57777001]
[1733895348088,2.2956,217.72,217.65,9.28157001]
[1733895348294,7.14157001,217.73,217.65,2.14]
[1733895348495,2.8931,217.74,217.65,2.14]
[1733895348496,7.14157001,217.71,217.65,4.4362]
[1733895348686,7.14157001,217.71,217.65,2.14]
[1733895349197,2.8931,217.74,217.65,2.14]
[1733895349198,7.14157001,217.69,217.65,2.14]
[1733895349389,2.2961,217.67,217.65,2.14]
[1733895349796,7.14157001,217.67,217.63,2.14]
[1733895349996,2.2963,217.65,217.63,2.14]
[1733895350387,7.14157001,217.67,217.63,2.14]
[1733895350993,2.2963,217.65,217.63,2.14]
[1733895351391,7.14157001,217.67,217.63,2.14]
[1733895352091,7.14157001,217.69,217.63,2.14]
[1733895353097,7.14157001,217.71,217.64,7.14157001]
[1733895353399,22.47094008,217.7,217.64,7.14157001]
[1733895353590,12.9337378,217.69,217.64,7.14157001]
[1733895353794,7.14157001,217.71,217.64,7.14157001]
[1733895353991,12.93393993,217.7,217.64,7.14157001]
[1733895354192,7.14157001,217.71,217.64,7.14157001]
[1733895354395,12.93335495,217.7,217.64,7.14157001]
[1733895354595,2.296,217.68,217.64,7.14157001]
[1733895355296,2.296,217.68,217.63,4.4363]
[1733895355692,14.03771008,217.74,217.63,2.14]
[1733895355997,22.47092445,217.73,217.63,2.14]
[1733895356191,22.47092445,217.72,217.63,2.14]
[1733895356389,12.93377901,217.71,217.63,2.14]
[1733895356590,12.93377901,217.7,217.63,2.14]
[1733895356798,14.03771008,217.74,217.63,2.14]
[1733895357100,22.47065463,217.73,217.63,2.14]
[1733895357297,14.03771008,217.74,217.63,2.14]